[Event "6th Heraklion Capablanca 2019"]
[Site "Heraklion"]
[Date "2019.05.03"]
[Round "5.1"]
[White "Zarubitski, Viachaslau"]
[Black "Karousos-Theodorakis, Nikolaos"]
[Result "1/2-1/2"]
[ECO "B51"]
[WhiteElo "2416"]
[BlackElo "2280"]
[Annotator "ChessBase"]
[PlyCount "109"]
[EventDate "2019.04.29"]
[EventType "tourn"]
[EventCountry "GRE"]
[SourceTitle "playchess.com"]
[Source "ChessBase"]
[SourceQuality "1"]
[TimeControl "40/5400+30:1800+30"]

1. e4 {[%emt 0:00:00]} c5 {[%emt 0:00:00]} 2. Nf3 {[%emt 0:00:00]} d6 {[%emt 0:00:00]} 3. Bb5+ {[%emt 0:00:00]} Nd7 {[%emt 0:00:00]} 4. d4 {[%emt 0:00:00]} cxd4 {[%emt 0:01:01]} 5. Qxd4 {[%emt 0:00:23]} a6 {[%emt 0:00:35]} 6. Bxd7+ {[%emt 0:00:06]} Bxd7 {[%emt 0:00:08]} 7. Nc3 {[%emt 0:00:07]} e5 {[%emt 0:02:45]} 8. Qd3 {[%emt 0:00:05]} h6 {[%emt 0:00:17]} 9. O-O {[%emt 0:00:27]} Nf6 {[%emt 0:01:17]} 10. Rd1 {[%emt 0:02:33]} b5 {[%emt 0:04:09]} 11. a4 {[%emt 0:17:22]} b4 {[%emt 0:04:26]} 12. Nd5 {[%emt 0:00:23]} Nxd5 {[%emt 0:00:08]} 13. Qxd5 {[%emt 0:00:33]} Be7 {[%emt 0:08:22]} 14. c3 {[%emt 0:10:04]} bxc3 {[%emt 0:07:27]} 15. bxc3 {[%emt 0:13:52]} Rc8 {[%emt 0:13:39]} 16. Qd3 {[%emt 0:25:46]} Qa5 {[%emt 0:17:55]} 17. Ba3 {[%emt 0:00:24]} Qxc3 {[%emt 0:02:00]} 18. Qxc3 {[%emt 0:03:18]} Rxc3 {[%emt 0:00:06]} 19. Bxd6 {[%emt 0:00:05]} Bxd6 {[%emt 0:04:04]} 20. Rxd6 {[%emt 0:00:01]} f6 {[%emt 0:08:11]} 21. Rxa6 {[%emt 0:01:35]} O-O {[%emt 0:00:12]} 22. Ra7 {[%emt 0:09:25]} Bc6 {[%emt 0:01:11]} 23. Rc7 {[%emt 0:01:18]} Ra8 {[%emt 0:01:19]} 24. h4 {[%emt 0:03:48]} h5 {[%emt 0:04:31]} 25. a5 {[%emt 0:01:14]} Ra6 {[%emt 0:00:28]} 26. Ra2 {[%emt 0:02:06]} Rc1+ {[%emt 0:02:49]} 27. Kh2 {[%emt 0:00:01]} Rf1 {[%emt 0:00:13]} 28. Rd2 {[%emt 0:03:36]} Bxe4 {[%emt 0:02:00]} 29. Rd8+ {[%emt 0:00:01]} Kh7 {[%emt 0:00:08]} 30. Nd2 {[%emt 0:00:04]} Re1 {[%emt 0:01:02]} 31. Rdd7 {[%emt 0:00:24]} Rxa5 {[%emt 0:03:39]} 32. Rxg7+ {[%emt 0:00:02]} Kh6 {[%emt 0:00:14]} 33. Nxe4 {[%emt 0:00:07]} Rxe4 {[%emt 0:00:01]} 34. Rh7+ {[%emt 0:00:04]} Kg6 {[%emt 0:00:06]} 35. Rcg7+ {[%emt 0:00:02]} Kf5 {[%emt 0:00:08]} 36. Rxh5+ {[%emt 0:00:03]} Ke6 {[%emt 0:00:35]} 37. Rh8 {[%emt 0:00:17]} Raa4 {[%emt 0:04:16]} 38. Kg3 {[%emt 0:00:34]} Re2 {[%emt 0:02:56]} 39. h5 {[%emt 0:04:41]} Re1 {[%emt 0:05:47]} 40. h6 {[%emt 0:00:00]} Rh1 {[%emt 0:00:00]} 41. h7 {[%emt 0:16:40]} Rah4 {[%emt 0:02:09]} 42. Ra7 {[%emt 0:00:33]} Kf5 {[%emt 0:02:07]} 43. Rg7 {[%emt 0:07:24]} R4h3+ {[%emt 0:10:49]} 44. gxh3 {[%emt 0:00:05]} Rg1+ {[%emt 0:00:03]} 45. Kf3 {[%emt 0:02:30]} Rxg7 {[%emt 0:00:05]} 46. h4 {[%emt 0:01:11]} Ra7 {[%emt 0:01:44]} 47. h5 {[%emt 0:00:02]} Rb7 {[%emt 0:00:29]} 48. Ke3 {[%emt 0:02:55]} Rd7 {[%emt 0:00:29]} 49. Ke2 {[%emt 0:00:01]} Kf4 {[%emt 0:01:08]} 50. Ke1 {[%emt 0:01:41]} f5 {[%emt 0:02:22]} 51. Ke2 {[%emt 0:00:04]} Ke4 {[%emt 0:00:51]} 52. h6 {[%emt 0:00:46]} Kf4 {[%emt 0:00:09]} 53. Ke1 {[%emt 0:00:38]} Ke4 {[%emt 0:00:43]} 54. Ke2 {[%emt 0:02:48]} Kf4 {[%emt 0:00:05]} 55. Ke1 {[%emt 0:02:15]} 1/2-1/2

[Event "6th Heraklion Capablanca 2019"]
[Site "Heraklion"]
[Date "2019.05.03"]
[Round "5.2"]
[White "Harff, Marcel"]
[Black "Yoo, Christopher Woojin"]
[Result "0-1"]
[ECO "D74"]
[WhiteElo "2412"]
[BlackElo "2414"]
[Annotator "NA"]
[PlyCount "86"]
[EventDate "2019.04.29"]
[EventType "tourn"]
[EventCountry "GRE"]
[SourceTitle "playchess.com"]
[Source "ChessBase"]
[SourceQuality "1"]
[TimeControl "40/5400+30:1800+30"]

1. c4 {[%emt 0:00:00]} Nf6 {[%emt 0:00:00]} 2. Nf3 {[%emt 0:00:00]} g6 {[%emt 0:00:00]} 3. g3 {[%emt 0:00:00]} Bg7 {[%emt 0:00:00]} 4. Bg2 {[%emt 0:00:01]} O-O {[%emt 0:00:00]} 5. d4 {[%emt 0:00:34]} d5 {[%emt 0:00:00]} 6. cxd5 {[%emt 0:01:14]} Nxd5 {[%emt 0:00:00]} 7. O-O {[%emt 0:00:12]} Nc6 {[%emt 0:00:04]} 8. e4 {[%emt 0:01:22]} Nb6 {[%emt 0:00:04]} 9. d5 {[%emt 0:00:10]} Na5 {[%emt 0:00:05]} 10. Qc2 {[%emt 0:01:30]} c6 {[%emt 0:07:13]} 11. dxc6 {[%emt 0:00:09]} Nxc6 {[%emt 0:00:04]} 12. Rd1 {[%emt 0:00:28]} Qe8 {[%emt 0:03:25]} 13. h3 {[%emt 0:07:01]} Be6 {[%emt 0:08:51]} 14. Nc3 {[%emt 0:04:11]} Nb4 {[%emt 0:11:41]} 15. Qb1 {[%emt 0:00:41]} Rd8 {[%emt 0:01:32]} 16. Be3 {[%emt 0:02:24]} Rxd1+ {[%emt 0:11:35]} 17. Qxd1 {[%emt 0:01:25]} Qc8 {[%emt 0:13:26]} 18. Rc1 {[%emt 0:03:48]} Rd8 {[%emt 0:05:01]} 19. Nd5 {[%emt 0:01:23]} Qd7 {[%emt 0:00:25]} 20. Bxb6 {[%emt 0:01:53]} axb6 {[%emt 0:00:11]} 21. Qb3 {[%emt 0:00:13]} Nxd5 {[%emt 0:00:48]} 22. exd5 {[%emt 0:00:02]} Bxd5 {[%emt 0:02:27]} 23. Qxb6 {[%emt 0:00:09]} Bc6 {[%emt 0:04:48]} 24. b3 {[%emt 0:02:31]} e5 {[%emt 0:02:52]} 25. Re1 {[%emt 0:02:11]} e4 {[%emt 0:03:42]} 26. Nh2 {[%emt 0:00:19]} Bc3 {[%emt 0:04:36]} 27. Re2 {[%emt 0:04:31]} Qd1+ {[%emt 0:02:41]} 28. Bf1 {[%emt 0:00:11]} f5 {[%emt 0:04:52]} 29. Re3 {[%emt 0:02:57]} Bf6 {[%emt 0:02:52]} 30. b4 {[%emt 0:01:57]} Re8 {[%emt 0:02:43]} 31. Qc5 {[%emt 0:07:49]} Bd4 {[%emt 0:01:24]} 32. Qc4+ {[%emt 0:00:08]} Kh8 {[%emt 0:01:31]} 33. b5 {[%emt 0:01:14]} Bxe3 {[%emt 0:01:16]} 34. bxc6 {[%emt 0:00:20]} Bxf2+ {[%emt 0:01:15]} 35. Kxf2 {[%emt 0:01:04]} e3+ {[%emt 0:00:05]} 36. Kg2 {[%emt 0:00:08]} e2 {[%emt 0:00:22]} 37. Qc3+ {[%emt 0:00:36]} Kg8 {[%emt 0:00:06]} 38. Qc4+ {[%emt 0:00:08]} Kg7 {[%emt 0:01:42]} 39. cxb7 {[%emt 0:02:31]} e1=Q {[%emt 0:01:03]} 40. Qc7+ {[%emt 0:00:00]} Kh8 {[%emt 0:00:00]} 41. b8=Q {[%emt 0:00:48]} Qdd2+ {[%emt 0:01:48]} 42. Kh1 {[%emt 0:00:27]} Qe4+ {[%emt 0:00:06]} 43. Kg1 {[%emt 0:00:25]} Qde3# {[%emt 0:00:45]} 0-1

[Event "6th Heraklion Capablanca 2019"]
[Site "Heraklion"]
[Date "2019.05.03"]
[Round "5.5"]
[White "Vaishali R"]
[Black "Szwed, Jacek"]
[Result "0-1"]
[ECO "C11"]
[WhiteElo "2353"]
[BlackElo "2387"]
[Annotator "ChessBase"]
[PlyCount "170"]
[EventDate "2019.04.29"]
[EventType "tourn"]
[EventCountry "GRE"]
[SourceTitle "playchess.com"]
[Source "ChessBase"]
[SourceQuality "1"]
[TimeControl "40/5400+30:1800+30"]

1. e4 {[%emt 0:00:00]} e6 {[%emt 0:00:00]} 2. d4 {[%emt 0:00:01]} d5 {[%emt 0:00:00]} 3. Nc3 {[%emt 0:00:07]} Nf6 {[%emt 0:00:00]} 4. e5 {[%emt 0:00:05]} Nfd7 {[%emt 0:00:01]} 5. f4 {[%emt 0:00:04]} c5 {[%emt 0:00:06]} 6. Nf3 {[%emt 0:00:05]} Qb6 {[%emt 0:00:05]} 7. Na4 {[%emt 0:06:42]} Qc6 {[%emt 0:00:13]} 8. Nc3 {[%emt 0:08:44]} b6 {[%emt 0:24:39]} 9. Be3 {[%emt 0:01:26]} Ba6 {[%emt 0:01:27]} 10. Qd2 {[%emt 0:25:52]} g6 {[%emt 0:06:12]} 11. g4 {[%emt 0:05:17]} h5 {[%emt 0:41:33]} 12. f5 {[%emt 0:01:34]} Bxf1 {[%emt 0:02:19]} 13. Rxf1 {[%emt 0:00:08]} hxg4 {[%emt 0:01:07]} 14. fxe6 {[%emt 0:00:22]} gxf3 {[%emt 0:00:30]} 15. exd7+ {[%emt 0:00:35]} Nxd7 {[%emt 0:00:01]} 16. O-O-O {[%emt 0:28:13]} cxd4 {[%emt 0:05:18]} 17. Bxd4 {[%emt 0:02:23]} Rh3 {[%emt 0:00:40]} 18. Qd3 {[%emt 0:03:27]} O-O-O {[%emt 0:11:04]} 19. Rxf3 {[%emt 0:00:42]} Rxf3 {[%emt 0:00:28]} 20. Qxf3 {[%emt 0:00:02]} Qe6 {[%emt 0:00:49]} 21. Nxd5 {[%emt 0:02:53]} Kb8 {[%emt 0:01:29]} 22. Re1 {[%emt 0:03:48]} f6 {[%emt 0:01:30]} 23. Nc3 {[%emt 0:07:35]} fxe5 {[%emt 0:00:18]} 24. Kb1 {[%emt 0:01:02]} Bg7 {[%emt 0:01:22]} 25. Bf2 {[%emt 0:00:38]} Qf5 {[%emt 0:00:17]} 26. Qe2 {[%emt 0:00:22]} Nf8 {[%emt 0:00:28]} 27. Bg3 {[%emt 0:00:26]} Re8 {[%emt 0:00:32]} 28. Nb5 {[%emt 0:00:42]} Qd7 {[%emt 0:00:38]} 29. Rd1 {[%emt 0:00:19]} Qc6 {[%emt 0:00:09]} 30. Nd4 {[%emt 0:00:43]} Qc5 {[%emt 0:00:36]} 31. Qf3 {[%emt 0:00:36]} Rc8 {[%emt 0:00:47]} 32. c3 {[%emt 0:00:18]} a6 {[%emt 0:00:37]} 33. Nc2 {[%emt 0:00:44]} Ka7 {[%emt 0:00:36]} 34. Nb4 {[%emt 0:00:27]} a5 {[%emt 0:00:12]} 35. Nd5 {[%emt 0:00:23]} Qc6 {[%emt 0:00:46]} 36. Bf2 {[%emt 0:00:33]} Rb8 {[%emt 0:00:34]} 37. Qe3 {[%emt 0:00:36]} Nd7 {[%emt 0:00:28]} 38. Qg5 {[%emt 0:00:29]} Qe6 {[%emt 0:00:33]} 39. Nc7 {[%emt 0:00:27]} Qf7 {[%emt 0:00:22]} 40. Qd2 {[%emt 0:00:00]} Nc5 {[%emt 0:00:00]} 41. Nb5+ {[%emt 0:01:48]} Ka6 {[%emt 0:10:23]} 42. Qe2 {[%emt 0:07:35]} Qf5+ {[%emt 0:03:31]} 43. Ka1 {[%emt 0:00:02]} Qh5 {[%emt 0:00:57]} 44. Qxh5 {[%emt 0:09:38]} gxh5 {[%emt 0:00:01]} 45. Nc7+ {[%emt 0:00:06]} Kb7 {[%emt 0:00:06]} 46. Bxc5 {[%emt 0:00:08]} bxc5 {[%emt 0:00:18]} 47. Rd7 {[%emt 0:05:11]} Bh8 {[%emt 0:08:21]} 48. Re7 {[%emt 0:05:18]} Kc6 {[%emt 0:01:00]} 49. Kb1 {[%emt 0:01:59]} e4 {[%emt 0:09:01]} 50. Kc2 {[%emt 0:00:13]} Kd6 {[%emt 0:00:39]} 51. Rh7 {[%emt 0:00:52]} Be5 {[%emt 0:01:36]} 52. Na6 {[%emt 0:03:19]} Rh8 {[%emt 0:00:46]} 53. Rxh8 {[%emt 0:00:53]} Bxh8 {[%emt 0:00:01]} 54. Kd2 {[%emt 0:00:25]} Be5 {[%emt 0:00:43]} 55. h3 {[%emt 0:00:32]} Bf4+ {[%emt 0:00:07]} 56. Ke2 {[%emt 0:00:01]} Kc6 {[%emt 0:00:39]} 57. b4 {[%emt 0:00:13]} axb4 {[%emt 0:00:49]} 58. cxb4 {[%emt 0:00:02]} c4 {[%emt 0:00:00]} 59. Nc5 {[%emt 0:01:15]} Kd5 {[%emt 0:00:34]} 60. Na4 {[%emt 0:00:49]} Kd4 {[%emt 0:00:31]} 61. b5 {[%emt 0:00:06]} c3 {[%emt 0:00:45]} 62. Nxc3 {[%emt 0:00:45]} Kxc3 {[%emt 0:00:01]} 63. b6 {[%emt 0:00:06]} Kb4 {[%emt 0:01:12]} 64. a4 {[%emt 0:01:07]} Kc5 {[%emt 0:00:27]} 65. a5 {[%emt 0:00:14]} Kc6 {[%emt 0:00:34]} 66. Ke1 {[%emt 0:00:42]} Kb7 {[%emt 0:00:30]} 67. Ke2 {[%emt 0:00:09]} Ka6 {[%emt 0:00:01]} 68. Kf2 {[%emt 0:00:40]} Bh6 {[%emt 0:00:36]} 69. Ke2 {[%emt 0:00:27]} Bg5 {[%emt 0:00:03]} 70. Kf2 {[%emt 0:00:15]} Kb7 {[%emt 0:00:44]} 71. Ke2 {[%emt 0:00:15]} Kc6 {[%emt 0:00:01]} 72. Ke1 {[%emt 0:00:33]} Be7 {[%emt 0:00:12]} 73. Ke2 {[%emt 0:00:17]} Bc5 {[%emt 0:00:07]} 74. Kd2 {[%emt 0:00:27]} Kb7 {[%emt 0:00:14]} 75. Ke1 {[%emt 0:00:45]} Kc6 {[%emt 0:02:09]} 76. Ke2 {[%emt 0:00:20]} Kd5 {[%emt 0:00:41]} 77. Kd1 {[%emt 0:01:30]} Ke5 {[%emt 0:00:33]} 78. Ke2 {[%emt 0:00:19]} Kf4 {[%emt 0:00:09]} 79. b7 {[%emt 0:00:49]} Ba7 {[%emt 0:00:02]} 80. a6 {[%emt 0:00:04]} Kg3 {[%emt 0:01:00]} 81. b8=Q+ {[%emt 0:00:14]} Bxb8 {[%emt 0:00:01]} 82. Ke3 {[%emt 0:00:05]} Kxh3 {[%emt 0:00:08]} 83. Kxe4 {[%emt 0:00:06]} Kg3 {[%emt 0:00:21]} 84. Kd5 {[%emt 0:00:02]} h4 {[%emt 0:00:11]} 85. Kc6 {[%emt 0:00:04]} Ba7 {[%emt 0:00:03]} 0-1

[Event "6th Heraklion Capablanca 2019"]
[Site "Heraklion"]
[Date "2019.05.04"]
[Round "6.2"]
[White "Anagnostopoulos, Konstantinos"]
[Black "Vaishali R"]
[Result "0-1"]
[ECO "A28"]
[WhiteElo "2350"]
[BlackElo "2323"]
[Annotator "NA"]
[PlyCount "76"]
[EventDate "2019.04.29"]
[EventType "tourn"]
[EventCountry "GRE"]
[SourceTitle "playchess.com"]
[Source "ChessBase"]
[SourceQuality "1"]
[TimeControl "40/5400+30:1800+30"]

1. c4 {[%emt 0:06:33]} e5 {[%emt 0:00:00]} 2. Nc3 {[%emt 0:02:06]} Nf6 {[%emt 0:00:00]} 3. Nf3 {[%emt 0:00:11]} Nc6 {[%emt 0:00:00]} 4. e4 {[%emt 0:00:31]} Bb4 {[%emt 0:00:00]} 5. d3 {[%emt 0:00:12]} d6 {[%emt 0:00:05]} 6. a3 {[%emt 0:00:31]} Bxc3+ {[%emt 0:09:02]} 7. bxc3 {[%emt 0:00:09]} h6 {[%emt 0:00:07]} 8. g3 {[%emt 0:00:06]} O-O {[%emt 0:00:16]} 9. Bg2 {[%emt 0:00:05]} Be6 {[%emt 0:10:35]} 10. O-O {[%emt 0:00:50]} Qd7 {[%emt 0:00:08]} 11. Rb1 {[%emt 0:01:50]} b6 {[%emt 0:06:10]} 12. Nh4 {[%emt 0:00:10]} Bh3 {[%emt 0:05:08]} 13. f4 {[%emt 0:06:38]} exf4 {[%emt 0:02:33]} 14. gxf4 {[%emt 0:00:19]} Bxg2 {[%emt 0:01:25]} 15. Nxg2 {[%emt 0:03:48]} Qg4 {[%emt 0:02:22]} 16. Qxg4 {[%emt 0:11:41]} Nxg4 {[%emt 0:00:03]} 17. h3 {[%emt 0:00:10]} Nf6 {[%emt 0:00:04]} 18. Ne3 {[%emt 0:00:55]} Rfe8 {[%emt 0:01:11]} 19. Rb2 {[%emt 0:02:24]} Na5 {[%emt 0:03:46]} 20. Kf2 {[%emt 0:02:56]} Nb7 {[%emt 0:13:39]} 21. Kf3 {[%emt 0:01:16]} Nc5 {[%emt 0:00:20]} 22. Rd1 {[%emt 0:00:42]} g6 {[%emt 0:03:55]} 23. Rg2 {[%emt 0:03:31]} Kh7 {[%emt 0:01:47]} 24. Nc2 {[%emt 0:02:02]} Nh5 {[%emt 0:08:25]} 25. Be3 {[%emt 0:06:20]} f5 {[%emt 0:02:48]} 26. exf5 {[%emt 0:00:48]} gxf5 {[%emt 0:00:08]} 27. Nb4 {[%emt 0:06:35]} Re6 {[%emt 0:11:28]} 28. Nd5 {[%emt 0:06:32]} Rc8 {[%emt 0:00:25]} 29. Bxc5 {[%emt 0:11:22]} dxc5 {[%emt 0:02:16]} 30. d4 {[%emt 0:06:00]} c6 {[%emt 0:04:30]} 31. Ne3 {[%emt 0:01:32]} Rce8 {[%emt 0:00:51]} 32. Nxf5 {[%emt 0:09:27]} Rf6 {[%emt 0:01:33]} 33. dxc5 {[%emt 0:01:03]} Rxf5 {[%emt 0:00:45]} 34. Rd7+ {[%emt 0:00:06]} Kh8 {[%emt 0:00:04]} 35. Rg4 {[%emt 0:02:14]} Nf6 {[%emt 0:01:15]} 36. Rf7 {[%emt 0:00:19]} Re3+ {[%emt 0:00:31]} 37. Kg2 {[%emt 0:00:30]} Re2+ {[%emt 0:00:12]} 38. Kf3 {[%emt 0:00:46]} Rf2+ {[%emt 0:00:09]} 0-1

[Event "6th Heraklion Capablanca 2019"]
[Site "Heraklion"]
[Date "2019.05.04"]
[Round "6.3"]
[White "Demuth, Adrien"]
[Black "Kelires, Andreas"]
[Result "1/2-1/2"]
[ECO "E92"]
[WhiteElo "2517"]
[BlackElo "2508"]
[Annotator "RC"]
[PlyCount "76"]
[EventDate "2019.04.29"]
[EventType "tourn"]
[EventCountry "GRE"]
[SourceTitle "playchess.com"]
[Source "ChessBase"]
[SourceQuality "1"]
[TimeControl "40/5400+30:1800+30"]

1. Nf3 {[%emt 0:00:00]} Nf6 {[%emt 0:00:00]} 2. c4 {[%emt 0:00:00]} g6 {[%emt 0:00:00]} 3. Nc3 {[%emt 0:00:00]} Bg7 {[%emt 0:00:00]} 4. d4 {[%emt 0:00:05]} O-O {[%emt 0:00:14]} 5. e4 {[%emt 0:00:04]} d6 {[%emt 0:00:04]} 6. Be2 {[%emt 0:00:12]} e5 {[%emt 0:00:04]} 7. dxe5 {[%emt 0:00:31]} dxe5 {[%emt 0:01:25]} 8. Qxd8 {[%emt 0:00:05]} Rxd8 {[%emt 0:00:04]} 9. Nd5 {[%emt 0:00:05]} Nxd5 {[%emt 0:00:50]} 10. cxd5 {[%emt 0:00:17]} c6 {[%emt 0:00:17]} 11. Bc4 {[%emt 0:00:05]} b5 {[%emt 0:03:53]} 12. Bb3 {[%emt 0:00:14]} Bb7 {[%emt 0:00:32]} 13. Bg5 {[%emt 0:00:07]} Rd7 {[%emt 0:02:13]} 14. Rc1 {[%emt 0:00:05]} cxd5 {[%emt 0:18:45]} 15. Bxd5 {[%emt 0:00:25]} Na6 {[%emt 0:00:09]} 16. Bxb7 {[%emt 0:02:22]} Rxb7 {[%emt 0:00:01]} 17. Ke2 {[%emt 0:03:10]} f6 {[%emt 0:03:18]} 18. Be3 {[%emt 0:01:27]} Rd8 {[%emt 0:01:59]} 19. Rhd1 {[%emt 0:17:43]} Rxd1 {[%emt 0:01:50]} 20. Rxd1 {[%emt 0:01:44]} Bf8 {[%emt 0:01:39]} 21. Rd8 {[%emt 0:12:35]} Kf7 {[%emt 0:01:54]} 22. Ne1 {[%emt 0:00:28]} Bc5 {[%emt 0:14:53]} 23. Nd3 {[%emt 0:01:54]} Bxe3 {[%emt 0:00:25]} 24. Kxe3 {[%emt 0:00:04]} Ke7 {[%emt 0:04:55]} 25. Rh8 {[%emt 0:06:04]} Kd6 {[%emt 0:00:17]} 26. Rf8 {[%emt 0:10:44]} Ke7 {[%emt 0:00:41]} 27. Ra8 {[%emt 0:02:09]} Nc7 {[%emt 0:15:39]} 28. Rh8 {[%emt 0:01:14]} Kd6 {[%emt 0:00:04]} 29. Rd8+ {[%emt 0:17:09]} Ke7 {[%emt 0:00:12]} 30. Rh8 {[%emt 0:00:05]} Kd6 {[%emt 0:00:05]} 31. g3 {[%emt 0:08:20]} Ne6 {[%emt 0:13:17]} 32. f4 {[%emt 0:00:11]} exf4+ {[%emt 0:04:03]} 33. gxf4 {[%emt 0:00:15]} Rc7 {[%emt 0:02:37]} 34. h4 {[%emt 0:08:28]} Re7 {[%emt 0:03:48]} 35. Rb8 {[%emt 0:02:20]} Ng7 {[%emt 0:01:29]} 36. Kf3 {[%emt 0:02:04]} Ne6 {[%emt 0:00:07]} 37. Ke3 {[%emt 0:00:40]} Ng7 {[%emt 0:00:01]} 38. Kf3 {[%emt 0:03:35]} Ne6 {[%emt 0:00:05]} 1/2-1/2

[Event "6th Heraklion Capablanca 2019"]
[Site "Heraklion"]
[Date "2019.05.04"]
[Round "6.5"]
[White "Zarubitski, Viachaslau"]
[Black "Harff, Marcel"]
[Result "1/2-1/2"]
[ECO "B31"]
[WhiteElo "2416"]
[BlackElo "2388"]
[Annotator "NA"]
[PlyCount "78"]
[EventDate "2019.04.29"]
[EventType "tourn"]
[EventCountry "GRE"]
[SourceTitle "playchess.com"]
[Source "ChessBase"]
[SourceQuality "1"]
[TimeControl "40/5400+30:1800+30"]

1. e4 {[%emt 0:00:00]} c5 {[%emt 0:00:00]} 2. Nf3 {[%emt 0:00:00]} Nc6 {[%emt 0:00:00]} 3. Bb5 {[%emt 0:00:12]} g6 {[%emt 0:00:00]} 4. O-O {[%emt 0:00:29]} Bg7 {[%emt 0:00:00]} 5. Bxc6 {[%emt 0:00:22]} dxc6 {[%emt 0:00:05]} 6. d3 {[%emt 0:00:03]} Qc7 {[%emt 0:01:38]} 7. h3 {[%emt 0:00:25]} b6 {[%emt 0:00:47]} 8. Qe2 {[%emt 0:00:54]} e5 {[%emt 0:00:08]} 9. a3 {[%emt 0:01:58]} a5 {[%emt 0:00:40]} 10. Be3 {[%emt 0:00:24]} Nf6 {[%emt 0:00:23]} 11. Nbd2 {[%emt 0:00:44]} Nh5 {[%emt 0:01:19]} 12. Nc4 {[%emt 0:15:21]} Be6 {[%emt 0:09:47]} 13. b4 {[%emt 0:08:30]} Bxc4 {[%emt 0:02:59]} 14. dxc4 {[%emt 0:00:24]} Nf4 {[%emt 0:00:35]} 15. Bxf4 {[%emt 0:04:48]} exf4 {[%emt 0:00:09]} 16. e5 {[%emt 0:00:03]} axb4 {[%emt 0:00:24]} 17. axb4 {[%emt 0:00:14]} Rxa1 {[%emt 0:00:36]} 18. Rxa1 {[%emt 0:00:03]} cxb4 {[%emt 0:00:12]} 19. Ra8+ {[%emt 0:06:45]} Ke7 {[%emt 0:00:10]} 20. Rxh8 {[%emt 0:00:28]} Bxh8 {[%emt 0:00:05]} 21. Qe4 {[%emt 0:00:04]} Kf8 {[%emt 0:03:30]} 22. Qxf4 {[%emt 0:01:40]} Kg8 {[%emt 0:09:13]} 23. Qe4 {[%emt 0:01:13]} Qd7 {[%emt 0:01:02]} 24. Ne1 {[%emt 0:07:03]} Bg7 {[%emt 0:00:29]} 25. Nd3 {[%emt 0:00:48]} Bf8 {[%emt 0:00:14]} 26. g4 {[%emt 0:01:15]} g5 {[%emt 0:03:22]} 27. Kg2 {[%emt 0:00:51]} h6 {[%emt 0:00:20]} 28. Kf3 {[%emt 0:17:58]} Qe6 {[%emt 0:01:56]} 29. Qd4 {[%emt 0:01:38]} b5 {[%emt 0:00:32]} 30. cxb5 {[%emt 0:19:10]} cxb5 {[%emt 0:00:09]} 31. Ke3 {[%emt 0:02:40]} b3 {[%emt 0:00:13]} 32. cxb3 {[%emt 0:02:59]} Qxb3 {[%emt 0:00:09]} 33. Ke4 {[%emt 0:00:09]} b4 {[%emt 0:02:08]} 34. f4 {[%emt 0:03:24]} gxf4 {[%emt 0:00:14]} 35. Kxf4 {[%emt 0:02:30]} Be7 {[%emt 0:07:59]} 36. Qd7 {[%emt 0:00:43]} Bg5+ {[%emt 0:03:29]} 37. Ke4 {[%emt 0:00:08]} Qc4+ {[%emt 0:00:21]} 38. Kf5 {[%emt 0:00:21]} b3 {[%emt 0:01:45]} 39. e6 {[%emt 0:00:10]} Qxe6+ {[%emt 0:00:13]} 1/2-1/2

[Event "6th Heraklion Capablanca 2019"]
[Site "Heraklion"]
[Date "2019.05.05"]
[Round "7.1"]
[White "Harff, Marcel"]
[Black "Karousos-Theodorakis, Nikolaos"]
[Result "1/2-1/2"]
[ECO "E68"]
[WhiteElo "2412"]
[BlackElo "2280"]
[Annotator "NA RC"]
[PlyCount "31"]
[EventDate "2019.04.29"]
[EventType "tourn"]
[EventCountry "GRE"]
[SourceTitle "playchess.com"]
[Source "ChessBase"]
[SourceQuality "1"]
[TimeControl "40/5400+30:1800+30"]

1. c4 {[%emt 0:00:00]} e5 {[%emt 0:00:00]} 2. Nc3 {[%emt 0:00:00]} Nf6 {[%emt 0:00:00]} 3. Nf3 {[%emt 0:00:00]} d6 {[%emt 0:00:24]} 4. g3 {[%emt 0:01:05]} g6 {[%emt 0:00:12]} 5. Bg2 {[%emt 0:00:07]} Bg7 {[%emt 0:00:05]} 6. d4 {[%emt 0:01:29]} Nbd7 {[%emt 0:00:51]} 7. O-O {[%emt 0:00:23]} O-O {[%emt 0:00:11]} 8. e4 {[%emt 0:01:43]} Re8 {[%emt 0:01:12]} 9. Re1 {[%emt 0:01:19]} a6 {[%emt 0:00:23]} 10. b3 {[%emt 0:04:30]} Rb8 {[%emt 0:11:58]} 11. dxe5 {[%emt 0:08:24]} Nxe5 {[%emt 0:01:51]} 12. Nxe5 {[%emt 0:00:11]} dxe5 {[%emt 0:00:05]} 13. Qxd8 {[%emt 0:01:14]} Rxd8 {[%emt 0:00:05]} 14. Bg5 {[%emt 0:00:24]} c6 {[%emt 0:02:44]} 15. Rad1 {[%emt 0:03:29]} Be6 {[%emt 0:03:25]} 16. Na4 {[%emt 0:03:57]} 1/2-1/2

[Event "6th Heraklion Capablanca 2019"]
[Site "Heraklion"]
[Date "2019.05.05"]
[Round "7.2"]
[White "Antic, Dejan"]
[Black "Zarubitski, Viachaslau"]
[Result "1/2-1/2"]
[ECO "D13"]
[WhiteElo "2471"]
[BlackElo "2416"]
[Annotator "ChessBase"]
[PlyCount "23"]
[EventDate "2019.04.29"]
[EventType "tourn"]
[EventCountry "GRE"]
[SourceTitle "playchess.com"]
[Source "ChessBase"]
[SourceQuality "1"]
[TimeControl "40/5400+30:1800+30"]

1. d4 {[%emt 0:00:23]} d5 {[%emt 0:00:00]} 2. c4 {[%emt 0:00:14]} c6 {[%emt 0:00:00]} 3. cxd5 {[%emt 0:01:02]} cxd5 {[%emt 0:00:00]} 4. Bf4 {[%emt 0:00:18]} Nf6 {[%emt 0:00:00]} 5. Nc3 {[%emt 0:00:26]} Nc6 {[%emt 0:00:00]} 6. e3 {[%emt 0:00:24]} e6 {[%emt 0:00:00]} 7. Bd3 {[%emt 0:01:06]} Be7 {[%emt 0:00:04]} 8. h3 {[%emt 0:00:55]} O-O {[%emt 0:00:41]} 9. Rc1 {[%emt 0:00:27]} Bd7 {[%emt 0:00:56]} 10. Nf3 {[%emt 0:00:22]} Qb6 {[%emt 0:00:14]} 11. Qe2 {[%emt 0:01:52]} Rfd8 {[%emt 0:04:25]} 12. O-O {[%emt 0:01:02]} 1/2-1/2